bitfinex/quotes_ETHUSD_20240730
["timestamp","ask_amount","ask_price","bid_price","bid_amount"]
[1722328480174,3.290301,3351.3,3351.0,3.013881]
[1722328480393,3.290301,3351.3,3351.0,0.029711]
[1722328480582,3.290301,3351.3,3350.8,2.98427]
[1722328480783,2.3595,3351.3,3351.1,0.029711]
[1722328481092,2.3595,3351.3,3350.8,2.98427]
[1722328481289,2.3595,3351.3,3351.2,0.0295451]
[1722328481478,2.3595,3351.3,3350.9,2.98419]
[1722328482071,2.3595,3351.3,3351.0,0.0295451]
[1722328483897,5.34341,3351.3,3350.8,2.9843]
[1722328484103,6.274224,3351.3,3350.9,0.0295451]
[1722328484602,2.98409,3351.1,3350.9,0.0295451]
[1722328484806,2.98409,3351.1,3350.6,2.98445]
[1722328484807,2.2712,3351.0,3350.5,2.98455]
[1722328485016,2.2712,3351.0,3350.6,2.98453]
[1722328489323,5.25539,3351.0,3350.3,2.98475]
[1722328489621,5.25539,3351.0,3350.5,2.98458]
[1722328490328,5.25539,3351.0,3350.5,2.98456]
[1722328490786,2.2712,3351.0,3350.5,2.98456]
[1722328490984,2.2712,3351.0,3350.7,2.98443]
[1722328491937,2.2712,3351.0,3350.5,2.98456]
[1722328491938,2.2712,3351.0,3350.6,2.98453]
[1722328493795,5.25539,3351.0,3350.5,2.98462]
[1722328494498,5.25539,3351.0,3350.5,5.96918]
[1722328494900,5.25539,3351.0,3350.5,2.98456]
[1722328497845,2.2712,3351.0,3350.5,2.98456]
[1722328498044,2.2712,3351.0,3350.6,2.98448]
[1722328498747,2.2712,3351.0,3350.7,0.02721093]
[1722328499046,2.2712,3351.0,3350.6,2.98448]
[1722328499216,2.2712,3351.0,3350.8,0.02721093]
[1722328499421,2.2712,3351.0,3350.6,2.98448]
[1722328499646,2.2712,3351.0,3350.9,0.02703769]
[1722328499852,2.2712,3351.0,3350.6,2.98448]
[1722328500321,2.2712,3351.0,3350.7,3.01146602]
[1722328500932,2.2712,3351.0,3350.7,3.01141602]
[1722328503281,2.2712,3351.0,3350.5,5.96913]
[1722328503575,2.2712,3351.0,3350.6,2.98453]
[1722328503777,2.2712,3351.0,3350.7,2.98442]
[1722328503933,2.2712,3351.0,3350.6,2.98453]
[1722328504285,2.2712,3351.0,3350.7,0.02635935]
[1722328504630,2.2712,3351.0,3350.6,2.98453]
[1722328504877,2.2712,3351.0,3350.8,0.0262209]
[1722328505084,2.2712,3351.0,3350.6,2.98453]
[1722328505253,5.25546,3351.0,3350.9,0.0262209]
[1722328505570,5.29098,3350.9,3350.4,2.98467]
[1722328506987,2.3067,3350.9,3350.5,2.98462]
[1722328507468,2.3067,3350.9,3350.6,2.98448]
[1722328507676,2.3067,3350.9,3350.4,3.96567]
[1722328507890,2.3067,3350.9,3350.6,2.98448]
[1722328513605,2.3067,3350.9,3350.5,2.9846]
[1722328513817,2.98462,3350.6,3349.7,7.46]
[1722328513981,2.4996,3350.4,3349.9,2.98515]
[1722328514389,5.48432,3350.4,3349.9,2.98515]
[1722328515372,2.4996,3350.4,3349.9,2.9851]
[1722328516118,5.48433,3350.4,3349.9,2.9851]
[1722328516669,5.48433,3350.4,3349.4,45.44558]
[1722328516670,2.3612,3350.2,3349.4,7.46]
[1722328516874,2.98499,3350.1,3349.4,3.96653]
[1722328517098,2.3612,3350.0,3349.4,3.96653]
[1722328517334,2.98496,3350.2,3349.2,36.6876465]
[1722328517335,0.981,3350.2,3349.2,1.6876465]
[1722328517495,2.4141,3349.6,3349.2,2.6686465]
[1722328518289,5.39954,3349.6,3349.2,1.6876465]
[1722328519072,2.98569,3349.3,3349.2,1.6876465]
[1722328519374,5.23679,3349.3,3349.2,1.6876465]
[1722328519620,9.142827,3349.3,3349.2,1.6876465]
[1722328520980,6.157137,3349.3,3349.2,1.6876465]
[1722328521317,5.23679,3349.3,3349.2,1.6876465]
[1722328521634,2.2511,3349.3,3349.2,1.6876465]
[1722328522128,2.4847,3349.7,3349.6,2.98543]
[1722328522483,2.379,3350.1,3349.7,2.98533]
[1722328522924,2.379,3350.1,3349.5,6.95193]
[1722328523081,2.379,3350.1,3349.6,2.98541]
[1722328523277,2.379,3350.1,3349.8,2.98519]
[1722328523619,2.379,3350.1,3349.7,0.981]
[1722328523939,2.379,3350.1,3349.7,3.96632]
[1722328524218,2.379,3350.1,3349.7,3.96627]
[1722328524415,2.529,3350.1,3349.7,3.96627]
[1722328524717,2.529,3350.1,3349.8,2.9852]
[1722328524922,2.529,3350.1,3349.9,2.98514]
[1722328525235,2.529,3350.1,3349.7,3.96627]
[1722328525523,2.529,3350.1,3349.7,2.98527]
[1722328525823,2.529,3350.1,3349.8,0.03909432]
[1722328526002,2.529,3350.1,3349.7,2.98527]
[1722328526315,2.529,3350.1,3349.9,0.02649359]
[1722328526632,2.529,3350.1,3349.7,2.98527]
[1722328526920,2.98558,3349.5,3349.2,1.6876465]
[1722328527087,2.98535,3349.7,3349.2,1.6876465]
[1722328527820,2.3466,3349.4,3349.2,1.6876465]
[1722328528881,2.3466,3349.4,3349.3,0.0266632]
[1722328531158,2.421,3349.9,3349.3,3.3116532]
[1722328531487,5.40618,3349.9,3349.4,2.98552]
[1722328531978,2.421,3349.9,3349.5,0.09855018]
[1722328535666,2.421,3349.9,3349.6,2.98542]
[1722328535835,2.421,3349.9,3349.6,3.0840252]
[1722328536623,2.421,3349.9,3349.6,0.0986052]
[1722328536820,2.421,3349.9,3349.4,2.98552]
[1722328537130,2.421,3349.9,3349.7,0.098729]
[1722328537330,2.98526,3349.8,3349.3,2.98569]
[1722328537837,2.98526,3349.8,3349.2,1.9869465]
[1722328538050,2.98526,3349.8,3349.2,4.9727265]
[1722328538743,2.98526,3349.8,3349.2,7.9584465]
[1722328539038,2.98526,3349.8,3349.2,4.9726665]
[1722328539248,2.98526,3349.8,3349.2,7.9583865]
[1722328539545,2.98526,3349.8,3349.2,4.9726565]
[1722328540350,2.98534,3349.7,3349.2,4.9726565]
[1722328541275,2.98527,3349.8,3349.2,4.9726565]
[1722328542021,2.98535,3349.7,3349.2,4.9726565]
[1722328542217,5.35198,3349.6,3349.2,1.9869465]
[1722328542763,2.3665,3349.6,3349.2,4.9726665]
[1722328542958,2.3665,3349.6,3349.3,2.98568]
[1722328543812,2.3665,3349.6,3349.4,0.098729]
[1722328544682,2.4789,3350.0,3349.6,2.98542]
[1722328544843,0.15,3350.1,3349.9,2.98516]
[1722328545041,0.15,3350.1,3350.0,41.06881857]
[1722328545446,0.15,3350.1,3350.0,41.36811857]
[1722328545636,0.15,3350.1,3350.0,44.35318857]
[1722328545859,0.15,3350.1,3350.0,46.71518857]
[1722328547352,0.15,3350.1,3350.0,41.36811857]
[1722328548219,0.15,3350.1,3350.0,6.36811857]
[1722328548705,0.15,3350.1,3350.0,41.36811857]
[1722328553087,0.15,3350.1,3350.0,44.35318857]
[1722328554087,0.15,3350.1,3350.0,3.08374857]
[1722328554391,0.15,3350.1,3350.0,0.09867857]
[1722328554767,0.15,3350.1,3349.8,3.28454]
[1722328554970,0.15,3350.1,3350.0,0.09124872]
[1722328555623,0.15,3350.1,3349.8,0.2993]
[1722328555763,0.15,3350.1,3350.0,0.09124872]
[1722328555968,0.15,3350.1,3349.8,0.2993]
[1722328556210,0.15,3350.1,3350.0,0.09124872]
[1722328556364,0.15,3350.1,3349.8,0.2993]
[1722328556564,0.15,3350.1,3350.0,0.09124872]
[1722328556819,0.15,3350.1,3349.9,2.98516]
[1722328557167,0.15,3350.1,3350.0,0.09124872]
[1722328558068,0.15,3350.1,3350.0,3.07631872]
[1722328559006,2.5156,3350.1,3350.0,0.09124872]
[1722328559181,2.76716,3350.1,3350.0,0.09124872]
[1722328559511,2.76716,3350.1,3350.0,0.09139535]
[1722328559718,2.76716,3350.1,3349.6,2.98534]
[1722328559870,2.5156,3350.1,3350.0,0.09139535]
[1722328560066,2.5156,3350.1,3349.8,2.98523]
[1722328560320,2.5156,3350.1,3350.0,2.98507]
[1722328560820,0.15,3350.1,3350.0,2.98507]
[1722328560970,0.15,3350.1,3350.0,3.07646535]
[1722328562712,0.15,3350.1,3350.0,0.09139535]
[1722328563070,2.3073,3350.0,3349.6,2.98538]
[1722328563309,2.3073,3350.0,3349.7,0.09139535]
[1722328563481,5.29237,3350.0,3349.7,0.09139535]
[1722328563666,5.29237,3350.0,3349.4,3.28484]
[1722328563894,2.3073,3350.0,3349.5,3.07682535]
[1722328564120,2.3073,3350.0,3349.5,0.09139535]
[1722328564319,5.29243,3350.0,3349.5,0.09139535]
[1722328565175,2.3073,3350.0,3349.5,0.09139535]
[1722328565536,2.3073,3350.0,3349.6,2.98542]
[1722328566190,2.3073,3350.0,3349.7,0.09139535]
[1722328566516,2.98522,3349.9,3349.7,0.09139535]
[1722328566684,3.150013,3350.0,3349.7,0.09139535]
[1722328566890,3.150013,3350.0,3349.3,2.98564]
[1722328567099,3.150013,3350.0,3349.4,0.09167031]
[1722328567285,2.98525,3349.8,3349.4,0.09167031]
[1722328567784,6.135163,3350.0,3349.4,0.09167031]
[1722328568019,2.98518,3349.9,3349.4,0.09167031]
[1722328568781,3.150013,3350.0,3349.5,2.98546]
[1722328568979,2.3073,3350.0,3349.6,2.98542]
[1722328569339,2.3073,3350.0,3349.7,0.09167031]
[1722328569919,2.3073,3350.0,3349.5,5.97095]
[1722328569920,2.3073,3350.0,3349.8,0.09167031]
[1722328570289,2.3073,3350.0,3349.5,2.98546]
[1722328570474,2.3073,3350.0,3349.6,0.09167031]
[1722328571090,2.3073,3350.0,3349.6,3.07709031]
[1722328571634,2.3073,3350.0,3349.6,2.98542]
[1722328571776,2.3073,3350.0,3349.7,0.09169781]
[1722328571979,2.98525,3349.8,3349.7,0.09169781]
[1722328572218,5.25845,3349.8,3349.7,0.09169781]
[1722328572518,2.98547,3349.6,3349.2,1.6876465]
[1722328572722,2.3264,3349.5,3349.2,1.6876465]
[1722328573920,2.3264,3349.5,3349.3,0.09192242]
[1722328577130,2.3264,3349.5,3349.3,3.07761242]
[1722328577721,2.3264,3349.5,3349.3,0.09192242]
[1722328578048,5.54461,3349.5,3349.3,0.09192242]
[1722328578207,2.9856,3349.4,3349.3,0.09192242]
[1722328579346,2.55904,3349.5,3349.3,0.09192242]
[1722328579510,2.3264,3349.5,3349.3,0.09192242]
[1722328582117,5.31198,3349.5,3349.3,0.09192242]
[1722328583558,2.3264,3349.5,3349.3,0.09192242]
[1722328584728,2.3264,3349.5,3349.3,3.07760242]
[1722328585064,2.3264,3349.5,3349.4,2.9856]
[1722328585216,2.3264,3349.5,3349.4,3.07782498]
[1722328585419,2.3264,3349.5,3349.4,0.09222498]
[1722328585644,2.3264,3349.5,3349.2,4.6734265]
[1722328585854,5.843092,3349.5,3349.2,1.6876465]
[1722328586066,2.3207,3349.4,3349.2,1.6876465]
[1722328586264,5.30631,3349.4,3349.2,1.6876465]
[1722328586422,2.98569,3349.3,3349.2,1.6876465]
[1722328586759,2.3207,3349.4,3349.2,1.6876465]
[1722328587734,5.30636,3349.4,3349.2,1.6876465]
[1722328588260,2.3207,3349.4,3349.2,1.6876465]
[1722328589023,2.3207,3349.4,3349.3,0.0923121]
[1722328589833,5.3063,3349.4,3349.3,0.0923121]
[1722328590035,5.83693,3349.4,3349.3,0.0923121]
[1722328590340,8.82253,3349.4,3349.3,0.0923121]
[1722328590653,8.82253,3349.4,3349.2,1.6876465]
[1722328590654,5.83693,3349.4,3349.2,1.6876465]
[1722328590857,5.44459,3349.3,3349.2,1.6876465]
[1722328591165,5.44459,3349.3,3349.2,1.77994026]
[1722328591374,2.4589,3349.3,3349.2,1.77994026]
[1722328593254,5.44459,3349.3,3349.2,1.77994026]
[1722328593942,9.283599,3349.3,3349.2,1.77994026]
[1722328594267,9.283599,3349.3,3349.2,1.6876465]
[1722328594781,12.269289,3349.3,3349.2,1.6876465]
[1722328594982,12.819289,3349.3,3349.2,1.6876465]
[1722328605409,13.804289,3349.3,3349.2,1.6876465]
[1722328622368,9.833599,3349.3,3349.2,1.6876465]
[1722328622683,0.15,3350.1,3349.5,2.98551]
[1722328622852,0.15,3350.1,3349.7,2.98526]
[1722328623083,0.15,3350.1,3349.8,2.98518]
[1722328623276,0.15,3350.1,3349.9,2.98514]
[1722328623488,0.15,3350.1,3349.9,0.09304128]
[1722328623687,0.15,3350.1,3349.6,0.985]
[1722328623688,0.15,3350.1,3349.8,2.98523]
[1722328623887,0.15,3350.1,3349.9,0.09280737]
[1722328624089,0.15,3350.1,3349.6,3.97037]
[1722328624296,0.15,3350.1,3349.6,2.98537]
[1722328624460,3.13499,3350.1,3349.7,0.09278903]
[1722328624819,2.98512,3350.0,3349.4,2.9856]
[1722328625115,0.15,3350.1,3349.5,2.9855]
[1722328625276,0.15,3350.1,3349.6,0.09247268]
[1722328625463,2.98508,3350.0,3349.6,0.09247268]
[1722328625661,0.15,3350.1,3349.6,0.09247268]
[1722328625862,2.98509,3350.0,3349.6,0.09247268]
[1722328626492,2.98509,3350.0,3349.2,4.6733865]
[1722328626877,2.98509,3350.0,3349.3,0.09247268]
[1722328627273,2.98518,3349.9,3349.3,3.07811268]
[1722328628064,3.13499,3350.1,3349.3,0.09247268]
[1722328628386,0.15,3350.1,3349.4,2.98554]
[1722328628606,0.15,3350.1,3349.9,2.98516]
[1722328629120,0.15,3350.1,3350.0,0.09252311]
[1722328630506,0.15,3350.1,3349.7,2.98533]
[1722328630923,0.15,3350.1,3349.8,0.09184907]
[1722328631071,0.15,3350.1,3349.7,2.98533]
[1722328631280,0.15,3350.1,3349.8,0.09184907]
[1722328631472,0.15,3350.1,3349.7,2.98533]
[1722328631783,0.15,3350.1,3349.8,0.09184907]
[1722328632207,0.15,3350.1,3349.7,2.98533]
[1722328632397,0.15,3350.1,3349.9,0.09184907]
[1722328632599,0.15,3350.1,3349.7,2.98533]
[1722328632797,0.15,3350.1,3350.0,0.09184907]
[1722328632997,0.15,3350.1,3349.8,2.98524]
[1722328633223,0.15,3350.1,3350.0,0.09184907]
[1722328633531,0.15,3350.1,3349.6,2.9854]
[1722328633532,0.15,3350.1,3349.6,2.98537]
[1722328633822,0.15,3350.1,3349.7,0.09184907]
[1722328634355,5.759515,3350.1,3349.7,0.09184907]
[1722328634476,2.98509,3350.0,3349.7,0.09184907]
[1722328634679,5.44603,3350.1,3349.4,2.98555]
[1722328634680,2.98518,3349.9,3349.4,2.98555]
[1722328634892,2.98518,3349.9,3349.5,0.09184907]
[1722328636008,5.44603,3350.1,3349.2,4.6733665]
[1722328636009,2.98507,3350.0,3349.3,2.98561]
[1722328636211,5.44603,3350.1,3349.6,0.09183532]
[1722328636212,2.461,3350.1,3349.6,0.09183532]
[1722328636427,5.44606,3350.1,3349.5,2.98546]
[1722328636583,5.44604,3350.1,3349.7,0.09185824]
[1722328636907,5.44604,3350.1,3349.8,0.09185824]
[1722328637113,5.44604,3350.1,3349.5,2.98546]
[1722328637308,5.44604,3350.1,3349.6,0.09185824]
[1722328638009,2.98517,3349.9,3349.6,0.09185824]
[1722328638329,2.98517,3349.9,3349.4,2.9856]
[1722328638483,2.98517,3349.9,3349.5,0.09183532]
[1722328639098,5.44604,3350.1,3349.5,3.07734532]
[1722328639721,5.44604,3350.1,3349.5,0.09183532]
[1722328639923,2.98517,3349.9,3349.3,5.97128]
[1722328640125,2.98517,3349.9,3349.4,0.09186282]
[1722328640486,5.44605,3350.1,3349.4,0.09186282]
[1722328640781,2.98527,3349.8,3349.4,0.09186282]
[1722328641321,2.98534,3349.7,3349.4,0.09186282]
[1722328641529,2.98551,3349.6,3349.2,1.6876465]
[1722328641943,2.98551,3349.6,3349.3,0.09199574]
[1722328642531,2.98535,3349.7,3349.3,0.09199574]
[1722328642728,2.98525,3349.8,3349.3,0.09199574]
[1722328642930,4.079735,3350.0,3349.3,0.09199574]
[1722328643327,4.079735,3350.0,3349.4,2.98559]
[1722328643520,5.44604,3350.1,3349.5,3.07754242]
[1722328644816,5.44604,3350.1,3349.5,0.09203242]
[1722328645116,2.98508,3350.0,3349.4,2.98559]
[1722328645318,2.98508,3350.0,3349.5,0.09203242]
[1722328645664,5.44599,3350.1,3349.5,3.07749242]
[1722328646063,6.54139996,3350.1,3349.5,3.07749242]
[1722328646441,2.98508,3350.0,3349.5,3.07749242]
[1722328646965,3.55640996,3350.1,3349.6,2.98541]
[1722328647561,3.55640996,3350.1,3349.7,0.09203242]
[1722328647884,3.55640996,3350.1,3349.2,1.6876465]
[1722328647885,2.301,3350.0,3349.2,1.6876465]
[1722328648171,2.98566,3349.4,3349.2,1.6876465]
[1722328648348,2.98569,3349.3,3349.2,1.6876465]
[1722328648539,5.28666,3349.4,3349.2,1.6876465]
[1722328648772,5.28666,3349.4,3349.3,0.0858465]
[1722328649329,6.11388,3349.4,3349.3,0.0858465]
[1722328649546,9.09954,3349.4,3349.3,0.0858465]
[1722328650068,6.11388,3349.4,3349.3,0.0858465]
[1722328650235,9.09954,3349.4,3349.3,0.0858465]
[1722328651362,9.09954,3349.4,3349.2,1.6876465]
[1722328651363,2.98569,3349.3,3349.2,1.6876465]
[1722328651969,2.98569,3349.3,3349.2,1.773493]
[1722328657257,6.514809,3349.3,3349.2,1.773493]
[1722328659164,8.928809,3349.3,3349.2,1.773493]
[1722328660811,8.38538,3349.3,3349.2,1.773493]
[1722328661107,5.39969,3349.3,3349.2,1.773493]
[1722328664539,2.414,3349.3,3349.2,1.773493]
[1722328664733,5.39969,3349.3,3349.2,1.773493]
[1722328670422,8.38538,3349.3,3349.2,1.773493]
[1722328670623,9.223918,3349.3,3349.2,1.773493]
[1722328675152,6.238228,3349.3,3349.2,1.773493]
[1722328675356,5.39969,3349.3,3349.2,1.773493]
[1722328675800,2.414,3349.3,3349.2,1.773493]
[1722328676655,5.39969,3349.3,3349.2,1.773493]
[1722328680127,2.414,3349.3,3349.2,1.773493]
[1722328680334,5.32226,3349.5,3349.2,1.773493]
[1722328680534,2.98565,3349.4,3349.2,1.773493]
[1722328682989,2.98569,3349.3,3349.2,1.773493]
[1722328683388,8.32108,3349.3,3349.2,1.773493]
[1722328683589,8.87108,3349.3,3349.2,1.6876465]
[1722328685739,8.87108,3349.3,3349.2,1.77398357]
[1722328685937,10.2181956,3349.3,3349.2,1.6876465]
[1722328688457,10.2181956,3349.3,3349.2,1.77398357]
[1722328690862,10.2181956,3349.3,3349.2,1.6876465]
[1722328691362,10.2181956,3349.3,3349.2,1.77398357]
[1722328693719,0.630626,3349.5,3349.2,1.77398357]
[1722328693720,3.616216,3349.5,3349.2,1.77398357]
[1722328693934,5.36129,3349.5,3349.2,1.77398357]
[1722328694336,2.98566,3349.4,3349.2,1.77398357]
[1722328694694,5.36129,3349.5,3349.2,1.77398357]
[1722328694695,5.97138,3349.3,3349.2,1.77398357]
[1722328695583,2.98569,3349.3,3349.2,1.77398357]
[1722328697990,9.33086,3349.5,3349.2,1.77398357]
[1722328698286,2.98561,3349.4,3349.2,1.77398357]
[1722328698483,7.278346,3349.5,3349.2,1.77398357]
[1722328698791,10.263926,3349.5,3349.2,1.77398357]
[1722328699498,7.278346,3349.5,3349.2,1.77398357]
[1722328699646,2.98566,3349.4,3349.2,1.77398357]
[1722328702055,2.98569,3349.3,3349.2,1.77398357]
[1722328705024,4.0120206,3349.4,3349.2,1.77398357]
[1722328705782,2.3757,3349.5,3349.2,1.77398357]
[1722328706034,5.36122,3349.5,3349.2,1.77398357]
[1722328707288,2.98552,3349.5,3349.2,1.77398357]
[1722328708808,2.9854,3349.7,3349.2,1.77398357]
[1722328708992,2.22538,3349.6,3349.2,1.77398357]
[1722328709187,5.21081,3349.6,3349.2,1.77398357]
[1722328710064,2.98556,3349.5,3349.2,1.77398357]
[1722328710986,2.98563,3349.4,3349.2,1.77398357]
[1722328711118,5.37303,3349.4,3349.2,1.77398357]
[1722328711321,6.529814,3349.4,3349.2,1.77398357]
[1722328712369,3.544184,3349.4,3349.2,1.77398357]
[1722328715859,6.529834,3349.4,3349.2,1.77398357]
[1722328716817,3.544184,3349.4,3349.2,1.77398357]
[1722328717564,2.3874,3349.4,3349.2,1.77398357]
[1722328718237,2.98554,3349.5,3349.2,1.77398357]
[1722328721064,2.98562,3349.4,3349.2,1.77398357]
[1722328721945,0.55,3349.6,3349.2,1.77398357]
[1722328722145,2.98554,3349.5,3349.2,1.77398357]
[1722328722446,3.975722,3349.4,3349.2,1.77398357]
[1722328723291,0.990102,3349.4,3349.2,1.77398357]
[1722328723474,5.25664,3349.5,3349.2,1.77398357]
[1722328724003,2.98562,3349.4,3349.2,1.77398357]
[1722328727065,2.2711,3349.5,3349.2,1.77398357]
[1722328727277,2.98566,3349.4,3349.2,1.77398357]
[1722328727605,6.650426,3349.4,3349.2,1.77398357]
[1722328727763,3.664736,3349.4,3349.2,1.77398357]
[1722328729368,2.2711,3349.5,3349.2,1.77398357]
[1722328730462,5.25663,3349.5,3349.2,1.77398357]
[1722328733790,2.2711,3349.5,3349.2,1.77398357]
[1722328735063,5.25662,3349.5,3349.2,1.77398357]
[1722328737502,2.98565,3349.4,3349.2,1.77398357]
[1722328737698,3.963277,3349.4,3349.2,1.77398357]
[1722328742160,0.977627,3349.4,3349.2,1.77398357]
[1722328743019,3.963287,3349.4,3349.2,1.77398357]
[1722328744262,0.977627,3349.4,3349.2,1.77398357]
[1722328744445,3.963237,3349.4,3349.2,1.77398357]
[1722328746252,2.98569,3349.3,3349.2,1.77398357]
[1722328749260,0.977627,3349.4,3349.2,1.77398357]
[1722328749446,2.98562,3349.4,3349.2,1.77398357]
[1722328751654,2.98569,3349.3,3349.2,1.77398357]
[1722328756188,5.97138,3349.3,3349.2,1.77398357]
[1722328756388,9.80448,3349.3,3349.2,1.77398357]
[1722328756608,9.80448,3349.3,3349.2,1.6876465]
[1722328756909,10.784928,3349.3,3349.2,1.6876465]
[1722328759609,13.770618,3349.3,3349.2,1.6876465]
[1722328771827,6.52138,3349.3,3349.2,1.6876465]
[1722328772435,6.52138,3349.3,3349.2,1.77398886]
[1722328776367,9.01798,3349.3,3349.2,1.77398886]
[1722328777018,9.01798,3349.3,3349.2,1.6876465]
[1722328777505,12.98767,3349.3,3349.2,1.6876465]
[1722328777650,14.584983,3349.3,3349.2,1.6876465]
[1722328789061,11.599293,3349.3,3349.2,1.6876465]
[1722328789842,10.00198,3349.3,3349.2,1.6876465]
[1722328790244,10.00198,3349.3,3349.2,1.77409431]
[1722328790425,10.00198,3349.3,3349.2,1.6876465]
[1722328790859,7.50538,3349.3,3349.2,1.6876465]
[1722328791229,6.52138,3349.3,3349.2,1.77409431]
[1722328791884,3.53569,3349.3,3349.2,1.77409431]
[1722328794592,2.98569,3349.3,3349.2,1.77409431]
[1722328795583,3.03,3349.8,3349.2,1.77409431]
[1722328795949,9.6976,3349.9,3349.4,3.96958]
[1722328795950,7.3,3349.9,3349.4,3.96958]
[1722328796088,10.28517,3349.9,3349.5,0.08623227]
[1722328796294,7.3,3349.9,3349.5,0.08623227]
[1722328797438,10.28516,3349.9,3349.5,0.08623227]
[1722328797602,2.98527,3349.8,3349.5,0.08623227]
[1722328797802,2.98535,3349.7,3349.5,0.08623227]
[1722328798111,2.98535,3349.7,3349.6,0.08608098]
[1722328798307,2.98535,3349.7,3349.2,1.6876465]
[1722328798513,2.98535,3349.7,3349.3,0.08608098]
[1722328799528,10.28522,3349.9,3349.3,0.08608098]
[1722328799712,10.28522,3349.9,3349.3,3.07177098]
[1722328800243,7.3,3349.9,3349.4,2.98559]
[1722328800697,7.3,3349.9,3349.5,0.08608098]
[1722328800893,10.28517,3349.9,3349.5,0.08608098]
[1722328801098,2.98517,3349.9,3349.5,0.08608098]
[1722328801297,2.98517,3349.9,3349.3,2.98568]
[1722328801546,2.98517,3349.9,3349.4,0.08608098]
[1722328802339,2.98517,3349.9,3349.4,3.07168098]
[1722328802499,3.13499,3350.1,3349.4,6.05721098]
[1722328802836,2.98517,3349.9,3349.4,3.07161098]
[1722328804469,0.55,3350.0,3349.5,2.98545]
[1722328804833,0.15,3350.1,3349.8,2.98524]
[1722328805178,0.15,3350.1,3350.0,2.98507]
[1722328805391,0.15,3350.1,3350.0,3.96907]
[1722328805731,0.15,3350.1,3350.0,3.07073382]
[1722328806577,0.15,3350.1,3350.0,0.08566382]
[1722328810238,0.15,3350.1,3350.0,3.07073382]
[1722328814506,0.15,3350.1,3350.0,9.23400382]
[1722328814667,0.15,3350.1,3350.0,12.21907382]
[1722328815207,0.15,3350.1,3350.0,47.21907382]
[1722328818180,0.15,3350.1,3350.0,12.21907382]
[1722328818701,0.15,3350.1,3350.0,47.21907382]
[1722328820794,0.15,3350.1,3350.0,9.23400382]
[1722328827087,0.15,3350.1,3350.0,44.23400382]
[1722328827825,0.15,3350.1,3350.0,9.23400382]
[1722328831168,0.15,3350.1,3350.0,7.03980382]
[1722328831741,0.15,3350.1,3350.0,7.08865245]
[1722328832039,0.15,3350.1,3350.0,42.08865245]
[1722328833354,0.15,3350.1,3350.0,45.07372245]
[1722328835698,0.15,3350.1,3350.0,10.07372245]
[1722328837928,0.15,3350.1,3350.0,7.08865245]
[1722328838627,0.15,3350.1,3350.0,10.07372245]
[1722328839473,0.15,3350.1,3350.0,7.08865245]
[1722328839733,0.15,3350.1,3350.0,42.08865245]
[1722328841314,0.15,3350.1,3350.0,45.07372245]
[1722328841515,0.15,3350.1,3350.0,42.08865245]
[1722328842080,0.15,3350.1,3350.0,7.08865245]
[1722328842284,0.15,3350.1,3350.0,10.07372245]
[1722328848689,0.15,3350.1,3350.0,45.07372245]
[1722328851621,0.15,3350.1,3350.0,10.07372245]
[1722328852246,0.15,3350.1,3350.0,45.07372245]
[1722328853373,0.15,3350.1,3350.0,42.08865245]
[1722328853537,0.15,3350.1,3350.0,45.07372245]
[1722328853871,0.15,3350.1,3350.0,42.08865245]
[1722328854437,0.15,3350.1,3350.0,45.07372245]
[1722328855277,0.15,3350.1,3350.0,42.08865245]
[1722328855574,0.15,3350.1,3350.0,41.10465245]
[1722328855743,0.15,3350.1,3350.0,42.08865245]
[1722328856565,0.15,3350.1,3350.0,45.07372245]
[1722328856979,0.15,3350.1,3350.0,42.08865245]
[1722328859446,0.15,3350.1,3350.0,42.08865245]
[1722328859774,0.15,3350.1,3350.0,47.67035845]
[1722328860086,0.15,3350.1,3350.0,46.11238017]
[1722328860463,0.15,3350.1,3350.0,47.67038735]
[1722328860699,0.15,3350.1,3350.0,45.07372245]
[1722328860864,0.15,3350.1,3350.0,47.67040132]
[1722328861064,0.15,3350.1,3350.0,47.67040136]
[1722328861477,0.15,3350.1,3350.0,47.67040113]
[1722328862077,0.15,3350.1,3350.0,45.07372245]
[1722328862268,0.15,3350.1,3350.0,47.6703759]
[1722328863086,0.15,3350.1,3350.0,48.29636576]
[1722328863301,0.15,3350.1,3350.0,45.07372245]
[1722328863509,0.15,3350.1,3350.0,47.67034942]
[1722328866715,0.15,3350.1,3350.0,47.67035635]
[1722328867773,0.15,3350.1,3350.0,48.29631141]
[1722328869341,0.15,3350.1,3350.0,56.14892635]
[1722328869545,0.15,3350.1,3350.0,59.1650034]
[1722328869846,0.15,3350.1,3350.0,62.1500734]
[1722328870054,0.15,3350.1,3350.0,58.22580914]
[1722328870351,0.15,3350.1,3350.0,62.14901168]
[1722328870535,0.15,3350.1,3350.0,61.21087914]
[1722328870705,2.3053,3350.9,3350.0,49.27059914]
[1722328870902,2.3053,3350.9,3350.8,9.93708]
[1722328871406,2.3053,3350.9,3350.8,10.07107037]
[1722328871857,7.3,3351.6,3351.5,2.98373]
[1722328872059,11.26708,3352.3,3351.7,2.9835]
[1722328872207,3.96708,3352.3,3351.7,2.98349]
[1722328872556,2.3378,3352.2,3351.8,0.13394459]
[1722328872709,2.3378,3352.2,3351.8,3.11739459]
[1722328872710,2.3378,3352.1,3351.8,3.11739459]
[1722328873053,2.3378,3352.0,3351.9,0.13394459]
[1722328873831,2.3378,3352.0,3351.7,2.98348]
[1722328874107,2.3378,3352.0,3351.8,0.13394459]
[1722328874704,2.3378,3352.0,3351.4,0.984]
[1722328874908,2.3378,3352.0,3351.9,0.1335783]
[1722328875113,2.3837,3351.9,3351.8,2.98346]
[1722328875538,2.3837,3351.9,3351.8,3.11697964]
[1722328878286,2.3837,3351.9,3351.8,6.10044964]